bitfinex-derivatives/quotes_BTCF0:USTF0_20210108
["timestamp","ask_amount","ask_price","bid_price","bid_amount"]
[1610088443101,0.00322514,38572.0,38565.0,0.25643608]
[1610088443503,0.00322944,38576.0,38565.0,0.25643608]
[1610088443902,0.13632608,38577.0,38565.0,0.25643608]
[1610088444205,0.00322884,38583.0,38566.0,0.00031514]
[1610088444602,0.00323295,38585.0,38569.0,3.9033]
[1610088445003,0.00323229,38592.0,38584.0,0.13632608]
[1610088445202,0.00323229,38592.0,38584.0,0.22382608]
[1610088445403,0.00323732,38599.0,38584.0,0.22382608]
[1610088445604,0.00323732,38599.0,38585.0,0.00031494]
[1610088445804,0.00323724,38612.0,38585.0,0.00031494]
[1610088446904,0.00324343,38608.0,38585.0,0.00031494]
[1610088447204,0.13632608,38586.0,38585.0,0.00031494]
[1610088448302,0.01114023,38607.0,38585.0,0.00031494]
[1610088448502,0.0032554,38604.0,38585.0,0.00031494]
[1610088448911,0.55822347,38608.0,38585.0,0.00031494]
[1610088448912,0.00325515,38608.0,38585.0,0.00031494]
[1610088449103,0.00325515,38608.0,38591.0,0.13632608]
[1610088449305,0.55818063,38612.0,38585.0,0.00031494]
[1610088449306,0.01116051,38611.0,38585.0,0.00031494]
[1610088449505,3.1177,38605.0,38592.0,0.00031491]
[1610088449706,3.22315,38605.0,38555.0,2.9688]
[1610088449907,0.00326218,38603.0,38555.0,2.9688]
[1610088450107,0.00326218,38603.0,38585.0,0.00031498]
[1610088450308,0.00326248,38593.0,38556.0,0.000315]
[1610088450508,0.00326248,38593.0,38555.0,2.9688]
[1610088450717,0.0032665,38587.0,38555.0,2.9688]
[1610088450910,0.0032665,38585.0,38556.0,0.00031504]
[1610088451110,0.1246265,38585.0,38563.0,0.13632608]
[1610088451311,0.13255975,38585.0,38563.0,0.13632608]
[1610088451710,0.13255975,38585.0,38564.0,0.00031504]
[1610088452211,0.01120386,38589.0,38564.0,0.00031504]
[1610088452411,0.01120386,38589.0,38564.0,0.03210128]
[1610088452611,0.11125,38593.0,38566.0,0.5]
[1610088452811,0.11125,38593.0,38586.0,0.5]
[1610088453012,0.13632608,38587.0,38586.0,0.5]
[1610088453511,0.13632608,38587.0,38586.0,0.50031499]
[1610088454712,0.13632608,38587.0,38586.0,0.00031499]
[1610088455513,0.13632608,38587.0,38579.0,0.00031499]
[1610088455913,0.13632608,38587.0,38586.0,0.00031499]
[1610088456214,0.13632608,38587.0,38578.0,0.08472]
[1610088456215,0.13632608,38587.0,38580.0,0.00031499]
[1610088456416,0.13632608,38587.0,38579.0,0.00031499]
[1610088456716,0.13632608,38587.0,38581.0,0.00031499]
[1610088456915,0.13632608,38587.0,38580.0,0.00031496]
[1610088457114,0.13632608,38581.0,38579.0,0.03209519]
[1610088457416,0.13632608,38581.0,38580.0,0.00031496]
[1610088457914,0.13632608,38581.0,38579.0,0.03178023]
[1610088457915,0.13632608,38581.0,38579.0,0.00031496]
[1610088458316,0.13632608,38581.0,38578.0,0.08472]
[1610088458516,0.13632608,38581.0,38580.0,0.00031496]
[1610088458715,0.13632608,38581.0,38579.0,0.50031496]
[1610088459016,0.13632608,38581.0,38580.0,0.00031499]
[1610088459616,0.13632608,38581.0,38567.0,0.03210082]
[1610088459819,0.13632608,38581.0,38580.0,0.00031501]
[1610088460017,0.13632608,38581.0,38568.0,0.00031501]
[1610088460317,0.13632608,38581.0,38580.0,0.00031501]
[1610088460517,0.13632608,38581.0,38569.0,0.00031501]
[1610088460818,0.13632608,38581.0,38580.0,0.00031501]
[1610088461018,0.13632608,38581.0,38567.0,0.03178581]
[1610088461019,0.13632608,38581.0,38578.0,0.13632608]
[1610088461418,0.13632608,38581.0,38580.0,0.00031499]
[1610088461723,0.13632608,38581.0,38578.0,0.13632608]
[1610088461724,0.13632608,38581.0,38579.0,0.03209553]
[1610088461919,0.13632608,38581.0,38580.0,0.00031496]
[1610088462518,0.13632608,38581.0,38579.0,0.03209553]
[1610088462719,0.13632608,38581.0,38580.0,0.00031493]
[1610088463319,0.13632608,38581.0,38579.0,0.0320955]
[1610088463520,0.13632608,38581.0,38580.0,0.5]
[1610088464222,0.13632608,38581.0,38580.0,0.03209371]
[1610088464423,0.13632608,38581.0,38580.0,0.53209371]
[1610088465021,0.13632608,38581.0,38580.0,0.03209371]
[1610088465722,0.13632608,38581.0,38580.0,0.53209371]
[1610088465923,0.13632608,38581.0,38580.0,0.5]
[1610088466222,0.13632608,38581.0,38580.0,0.53209489]
[1610088466423,0.13632608,38581.0,38580.0,0.50031495]
[1610088467223,0.13632608,38581.0,38580.0,0.49872629]
[1610088467224,0.13959812,38581.0,38580.0,0.49872629]
[1610088467625,0.60392325,38581.0,38580.0,0.49872629]
[1610088468026,1.54628189,38581.0,38580.0,0.49872629]
[1610088468324,0.15206288,38581.0,38580.0,0.49872629]
[1610088468925,0.13959805,38581.0,38580.0,0.49872629]
[1610088469226,0.13959805,38581.0,38580.0,0.53051341]
[1610088469227,0.13632608,38581.0,38580.0,0.53051341]
[1610088470326,0.13632608,38581.0,38580.0,0.49872629]
[1610088470527,0.13632608,38581.0,38580.0,0.53051213]
[1610088474539,3.13782608,38581.0,38580.0,0.53051213]
[1610088475239,0.13632608,38581.0,38580.0,0.53051213]
[1610088476944,0.11513,38584.0,38580.0,0.53051213]
[1610088477148,0.25145608,38584.0,38583.0,0.13632608]
[1610088477344,0.13632608,38584.0,38583.0,0.13632608]
[1610088477744,0.13632608,38584.0,38583.0,0.16842232]
[1610088480048,0.13632608,38584.0,38583.0,0.66842232]
[1610088480950,0.13632608,38584.0,38583.0,0.53209624]
[1610088481449,0.25280726,38584.0,38583.0,0.53209624]
[1610088498572,1.20091736,38584.0,38583.0,0.53209624]
[1610088499474,1.89416651,38584.0,38583.0,0.53209624]
[1610088501781,2.68362302,38584.0,38583.0,0.53209624]
[1610088502182,2.8720946,38584.0,38583.0,0.53209624]
[1610088502581,3.25346299,38584.0,38583.0,0.53209624]
[1610088503186,4.13806503,38584.0,38583.0,0.49841075]
[1610088503383,5.63806503,38584.0,38583.0,0.49841075]
[1610088503784,6.21025368,38584.0,38583.0,0.49841075]
[1610088504186,7.31586846,38584.0,38583.0,0.49841075]
[1610088504586,8.70526925,38584.0,38583.0,0.41893363]
[1610088504786,8.1330806,38584.0,38545.0,0.06361128]
[1610088504986,7.5632806,38584.0,38545.0,0.06361128]
[1610088505186,0.56852361,38559.0,38545.0,0.06361128]
[1610088505386,0.13632608,38546.0,38542.0,0.03212806]
[1610088505586,0.13632608,38546.0,38541.0,0.12409]
[1610088505791,0.13632608,38546.0,38543.0,0.03212912]
[1610088506193,0.13632608,38546.0,38542.0,0.03213003]
[1610088506388,0.13632608,38546.0,38544.0,0.03212993]
[1610088506592,0.13632608,38546.0,38543.0,0.0321299]
[1610088506891,0.13632608,38546.0,38545.0,0.03213042]
[1610088507191,0.13632608,38546.0,38541.0,0.12409]
[1610088507192,0.13632608,38546.0,38544.0,0.03213081]
[1610088507390,0.5589,38545.0,38542.0,0.03213294]
[1610088507790,0.5589,38545.0,38544.0,0.03213294]
[1610088507992,0.5589,38545.0,38543.0,0.03213331]
[1610088508191,0.5589,38545.0,38542.0,0.03213286]
[1610088508493,0.5589,38545.0,38544.0,0.03213308]
[1610088508691,0.5589,38545.0,38543.0,0.03213301]
[1610088508991,0.5589,38545.0,38542.0,0.03213344]
[1610088509191,0.5589,38545.0,38541.0,0.12409]
[1610088509192,0.5589,38545.0,38544.0,0.0321333]
[1610088509593,0.5589,38545.0,38542.0,0.0321334]
[1610088509793,0.13632608,38546.0,38544.0,0.03213358]
[1610088509994,0.13632608,38546.0,38543.0,0.03213281]
[1610088510395,0.13632608,38546.0,38542.0,0.03213108]
[1610088510596,0.13632608,38546.0,38544.0,0.00032009]
[1610088510793,0.13632608,38546.0,38543.0,0.03212956]
[1610088511194,0.13632608,38546.0,38542.0,0.03212817]
[1610088511394,0.13632608,38546.0,38544.0,0.16845431]
[1610088511595,0.13632608,38546.0,38544.0,0.13632608]
[1610088511998,0.13632608,38546.0,38545.0,0.03212511]
[1610088512196,0.68770569,38567.0,38545.0,0.03212511]
[1610088512497,0.12085,38567.0,38545.0,0.03212511]
[1610088512897,0.56673663,38571.0,38545.0,0.03212511]
[1610088513097,0.56673663,38571.0,38546.0,0.5]
[1610088513400,0.56670707,38573.0,38556.0,0.13632608]
[1610088513796,0.56670707,38573.0,38557.0,0.03211836]
[1610088514197,0.37317217,38584.0,38557.0,0.03211836]
[1610088514198,0.56665642,38575.0,38557.0,0.03211836]
[1610088514596,0.56668298,38576.0,38557.0,0.03211836]
[1610088515399,0.13632608,38558.0,38557.0,0.03211836]
[1610088515598,0.13632608,38558.0,38556.0,0.10574]
[1610088515801,0.13632608,38558.0,38557.0,0.03212147]
[1610088517000,0.13632608,38558.0,38547.0,0.03212191]
[1610088517300,0.13632608,38558.0,38557.0,0.03212272]
[1610088517500,0.13632608,38558.0,38547.0,0.53212384]
[1610088517702,0.13632608,38558.0,38557.0,0.03212603]
[1610088517901,0.13632608,38558.0,38548.0,0.03212628]
[1610088518301,0.13632608,38558.0,38542.0,0.03212681]
[1610088518501,0.13632608,38558.0,38549.0,0.03212808]
[1610088518807,0.13632608,38558.0,38543.0,0.03212781]
[1610088519002,0.13632608,38558.0,38548.0,0.5]
[1610088519202,0.13632608,38558.0,38549.0,0.03212866]
[1610088519404,0.56672643,38559.0,38549.0,0.03212866]
[1610088519805,0.56672643,38559.0,38557.0,0.5]
[1610088520206,0.56672643,38559.0,38542.0,0.03213047]
[1610088520411,0.56672643,38559.0,38558.0,0.03213052]
[1610088520609,2.19243704,38560.0,38549.0,0.53213067]
[1610088520809,2.19243704,38560.0,38550.0,0.03213183]
[1610088521008,2.0102,38558.0,38550.0,0.03213183]
[1610088521412,0.13632608,38551.0,38550.0,0.03213183]
[1610088523413,0.13632608,38551.0,38534.0,0.03213207]
[1610088524212,0.13632608,38551.0,38550.0,0.5]
[1610088524612,0.13632608,38551.0,38550.0,0.53213032]
[1610088525213,0.13632608,38551.0,38550.0,0.03213032]
[1610088525614,0.13632608,38551.0,38544.0,0.5]
[1610088525812,0.13632608,38551.0,38550.0,0.03212913]
[1610088526113,0.13632608,38551.0,38545.0,0.032129]
[1610088526514,0.13632608,38551.0,38550.0,0.03212814]
[1610088526713,0.13632608,38551.0,38549.0,0.5]
[1610088527012,0.13632608,38551.0,38550.0,0.03212804]
[1610088529116,0.13632608,38551.0,38550.0,0.53212804]
[1610088529317,0.13632608,38551.0,38550.0,0.66845412]
[1610088529615,0.5659129,38559.0,38550.0,0.16845412]
[1610088529916,0.56581975,38564.0,38550.0,0.16845412]
[1610088530219,0.56572839,38569.0,38551.0,0.13298295]
[1610088530616,0.89011533,38580.0,38551.0,0.13298295]
[1610088530617,0.56569885,38573.0,38552.0,0.03211932]
[1610088530918,0.00329856,38567.0,38552.0,0.03211932]
[1610088531417,0.00329802,38571.0,38566.0,0.13632608]
[1610088531618,0.00329802,38571.0,38566.0,0.23003608]
[1610088531819,0.13962434,38572.0,38566.0,0.23003608]
[1610088532017,0.13962434,38572.0,38567.0,0.03211373]
[1610088532918,0.00329821,38571.0,38567.0,0.03211373]
[1610088533418,0.13632608,38568.0,38567.0,0.16843981]
[1610088535520,0.13632608,38568.0,38567.0,0.03211373]
[1610088538420,0.13632608,38568.0,38567.0,0.53211373]
[1610088540824,0.13962646,38568.0,38567.0,0.53211373]
[1610088541225,1.64764446,38568.0,38567.0,0.53211373]
[1610088541625,3.05603239,38568.0,38567.0,0.53211373]
[1610088542028,4.53494247,38568.0,38567.0,0.53211373]
[1610088542928,4.53494247,38568.0,38567.0,0.49841034]
[1610088543530,4.53494247,38568.0,38567.0,0.31571034]
[1610088544032,5.41618311,38568.0,38567.0,0.31571034]
[1610088544429,6.51775058,38568.0,38567.0,0.23621276]
[1610088544631,6.51775058,38568.0,38567.0,1.276e-05]
[1610088544929,1.5,38560.0,38525.0,0.06362473]
[1610088545128,1.5,38560.0,38534.0,0.03213367]
[1610088545332,0.13632608,38535.0,38525.0,0.09575901]
[1610088545530,0.13632608,38535.0,38531.0,0.11091]
[1610088546229,0.13632608,38535.0,38532.0,0.03213418]
[1610088547531,0.13632608,38535.0,38532.0,0.16846026]
[1610088548032,0.13632608,38535.0,38533.0,0.03212901]
[1610088549531,0.13632608,38535.0,38532.0,0.03212997]
[1610088549932,0.13632608,38535.0,38534.0,0.03213029]
[1610088550133,0.13632608,38535.0,38533.0,0.03213218]
[1610088550332,0.13632608,38535.0,38532.0,0.03213273]
[1610088550735,0.13632608,38535.0,38531.0,0.11091]
[1610088551035,0.13632608,38535.0,38533.0,0.03213273]
[1610088551234,0.13632608,38535.0,38532.0,0.0321332]
[1610088551536,0.13632608,38535.0,38534.0,0.03213364]
[1610088551735,0.13632608,38535.0,38533.0,0.03213428]
[1610088552034,0.13632608,38535.0,38534.0,0.03213425]
[1610088552436,0.13632608,38535.0,38526.0,0.03213387]
[1610088552736,0.13632608,38535.0,38534.0,0.03213462]
[1610088552937,0.13963225,38535.0,38527.0,0.03213507]
[1610088553236,0.13963225,38535.0,38534.0,0.03213532]
[1610088553436,0.15222419,38535.0,38534.0,0.00031763]
[1610088553736,0.16025353,38535.0,38534.0,0.00031763]
[1610088554137,0.16025353,38535.0,38529.0,0.03213463]
[1610088554441,0.14435542,38535.0,38534.0,0.00031763]
[1610088554636,0.14435542,38535.0,38526.0,0.03213288]
[1610088554940,0.13963219,38535.0,38534.0,0.00031761]
[1610088555137,0.13963219,38535.0,38527.0,0.03213259]
[1610088555438,0.13632608,38528.0,38526.0,0.03213224]
[1610088555638,0.13632608,38528.0,38525.0,0.11927]
[1610088555838,0.13632608,38528.0,38527.0,0.03213345]
[1610088556138,0.13632608,38528.0,38526.0,0.03213347]
[1610088556437,0.13632608,38528.0,38527.0,0.0321323]
[1610088557138,0.003306,38543.0,38527.0,0.03181068]
[1610088557339,0.00330578,38545.0,38527.0,0.03212824]
[1610088557643,0.13632608,38528.0,38527.0,0.13664364]
[1610088557840,0.13632608,38528.0,38527.0,0.13632608]
[1610088558139,0.13632608,38528.0,38527.0,0.16845469]
[1610088558339,0.48831431,38547.0,38527.0,0.16845469]
[1610088558540,0.00330659,38545.0,38527.0,0.16845469]
[1610088558840,0.00330659,38545.0,38528.0,0.03212525]
[1610088559041,0.56700074,38550.0,38528.0,0.03212525]
[1610088559042,0.0033067,38551.0,38535.0,3.6276]
[1610088559243,0.0033067,38551.0,38535.0,0.12735]
[1610088559442,0.14766328,38554.0,38550.0,0.13632608]
[1610088559641,0.14766328,38554.0,38550.0,0.23644608]
[1610088559842,0.13632608,38554.0,38551.0,0.03212069]
[1610088560645,0.13632608,38554.0,38550.0,0.23644608]
[1610088560844,0.13632608,38554.0,38552.0,0.03211829]
[1610088561244,0.13632608,38554.0,38551.0,0.03211834]
[1610088561444,0.13632608,38554.0,38553.0,0.03211906]
[1610088561645,0.13632608,38554.0,38552.0,0.03212033]
[1610088562145,0.14436049,38554.0,38553.0,0.03212254]
[1610088562345,0.60911031,38554.0,38553.0,0.03212254]
[1610088562545,0.60911031,38554.0,38551.0,0.03212327]
[1610088562747,0.60911031,38554.0,38553.0,0.03212379]
[1610088562946,0.60911031,38554.0,38552.0,0.03212401]
[1610088563145,1.55804318,38554.0,38552.0,0.03212401]
[1610088563345,1.55804318,38554.0,38551.0,0.03212396]
[1610088563646,0.47293585,38553.0,38550.0,0.10012]
[1610088563846,0.47293585,38553.0,38552.0,0.03212375]
[1610088564044,0.47293585,38553.0,38551.0,0.0321243]
[1610088564246,0.47293585,38553.0,38552.0,0.03212439]
[1610088564846,0.47293585,38553.0,38551.0,0.03212399]
[1610088565047,0.47293585,38553.0,38552.0,0.03212367]
[1610088565347,0.47293585,38553.0,38552.0,0.53212367]
[1610088565548,0.00803681,38553.0,38552.0,0.50031752]
[1610088565847,0.00803681,38553.0,38552.0,0.0321228]
[1610088566246,0.14767158,38554.0,38552.0,0.5321228]
[1610088566646,0.16027834,38554.0,38553.0,0.53212235]
[1610088567048,0.14436248,38554.0,38553.0,0.03212235]
[1610088567451,0.13632608,38554.0,38553.0,0.5]
[1610088567647,0.13632608,38554.0,38553.0,0.5321203]
[1610088568250,0.13632608,38554.0,38553.0,0.59572483]
[1610088568448,0.13632608,38554.0,38553.0,0.56392201]
[1610088568848,0.13632608,38554.0,38553.0,0.53211997]
[1610088574555,0.13632608,38554.0,38553.0,0.59572531]
[1610088574754,0.13632608,38554.0,38553.0,0.25935962]
[1610088579863,0.13963584,38554.0,38553.0,0.25935962]
[1610088581164,0.13632608,38554.0,38553.0,0.25935962]
[1610088585369,0.00331001,38558.0,38553.0,0.25935962]
[1610088585669,0.00330964,38561.0,38557.0,0.13632608]
[1610088586170,0.00330941,38566.0,38558.0,0.03211192]
[1610088586570,0.01134595,38567.0,38558.0,0.03211192]
[1610088586971,0.00803715,38567.0,38558.0,0.03211192]
[1610088587171,0.01134445,38568.0,38558.0,0.03211192]
[1610088587572,0.01134445,38568.0,38567.0,0.13632608]
[1610088587573,0.0033088,38568.0,38567.0,0.13632608]
[1610088587974,0.0033088,38568.0,38567.0,0.16843565]
[1610088588977,0.0033088,38568.0,38567.0,0.03210957]
[1610088589376,0.48874929,38568.0,38560.0,0.0321138]
[1610088589575,0.48874929,38568.0,38567.0,0.03211656]
[1610088589776,1.07487897,38568.0,38560.0,0.03211698]
[1610088589978,1.07487897,38568.0,38567.0,0.53211747]
[1610088590176,0.38142415,38568.0,38567.0,0.53211747]
[1610088590677,2.11527679,38568.0,38567.0,0.53211747]
[1610088590876,2.52192805,38568.0,38567.0,0.53211747]
[1610088591180,2.90341195,38568.0,38567.0,0.53211747]
[1610088591577,2.90341195,38568.0,38567.0,0.5305279]
[1610088593179,2.11533654,38568.0,38567.0,0.5305279]
[1610088593579,2.11533654,38568.0,38567.0,0.66685398]
[1610088593980,0.47289755,38568.0,38567.0,0.66685398]
[1610088594879,0.13632608,38569.0,38567.0,0.66685398]
[1610088595278,0.13632608,38569.0,38567.0,0.2320336]
[1610088595479,0.47301167,38568.0,38567.0,0.20023358]
[1610088595680,0.47301167,38568.0,38567.0,0.13632608]
[1610088596080,0.47301167,38568.0,38567.0,0.16843803]
[1610088596479,0.47301167,38568.0,38567.0,0.71113803]
[1610088597181,0.47301167,38568.0,38567.0,1.274726]
[1610088597481,0.48893315,38568.0,38567.0,1.274726]
[1610088598381,0.01592148,38568.0,38567.0,1.274726]
[1610088599282,0.00804002,38568.0,38567.0,1.274726]
[1610088599682,0.13963655,38569.0,38567.0,1.274726]
[1610088600082,0.15224823,38569.0,38568.0,0.59569502]
[1610088600482,0.13963656,38569.0,38568.0,0.56390247]
[1610088600682,0.13963656,38569.0,38568.0,0.06358509]
[1610088600882,0.13963656,38569.0,38568.0,0.09569495]
[1610088601082,0.15224724,38569.0,38568.0,0.09569495]
[1610088601485,0.13632608,38569.0,38568.0,0.09569495]
[1610088602683,0.13632608,38569.0,38568.0,0.59569495]
[1610088606689,4.0,38570.0,38568.0,0.59569495]
[1610088607286,4.0,38570.0,38569.0,0.03210663]
[1610088608887,4.0,38570.0,38569.0,0.09568194]
[1610088609388,4.0,38570.0,38569.0,0.03210663]
[1610088611689,4.0,38570.0,38569.0,0.53210663]
[1610088617699,4.0,38570.0,38569.0,0.5]
[1610088617899,4.0,38570.0,38569.0,0.53209831]
[1610088625705,4.0,38570.0,38569.0,4.69329831]
[1610088625905,4.0,38570.0,38569.0,4.85218796]
[1610088626106,4.385805,38570.0,38569.0,4.85218796]
[1610088627207,3.612505,38570.0,38569.0,4.85218796]
[1610088628809,3.612505,38570.0,38569.0,0.69098796]
[1610088629009,3.612505,38570.0,38569.0,0.53209831]
[1610088629209,3.612505,38570.0,38569.0,0.59565324]
[1610088629510,3.612505,38570.0,38569.0,0.53209831]
[1610088640826,4.225005,38570.0,38569.0,0.53209831]
[1610088641227,5.725005,38570.0,38569.0,0.53209831]
[1610088641925,5.86133108,38570.0,38569.0,0.53209831]
[1610088642326,7.97764123,38570.0,38569.0,0.53209831]
[1610088642929,8.54973454,38570.0,38569.0,0.53209831]
[1610088643928,7.04973454,38570.0,38569.0,0.53209831]
[1610088644832,6.47764123,38570.0,38569.0,0.53209831]
[1610088645032,8.54976631,38570.0,38569.0,0.53209831]
[1610088645231,8.54976631,38570.0,38569.0,0.23699831]
[1610088645433,9.33874437,38570.0,38569.0,0.23699831]
[1610088646832,7.83874437,38570.0,38569.0,0.23699831]
[1610088647036,9.33874437,38570.0,38569.0,0.23699831]
[1610088651739,7.22624437,38570.0,38569.0,0.23699831]
[1610088652940,6.43726631,38570.0,38569.0,0.23699831]
[1610088653443,5.17120001,38570.0,38569.0,0.23699831]
[1610088654244,3.76475507,38570.0,38569.0,0.23699831]
[1610088655046,3.75687184,38570.0,38569.0,0.23699831]
[1610088655447,3.76475561,38570.0,38569.0,0.23699831]
[1610088656151,4.22200893,38570.0,38569.0,0.23699831]
[1610088657252,5.1711958,38570.0,38569.0,0.23699831]
[1610088659553,6.6711958,38570.0,38569.0,0.23699831]
[1610088660154,10.84917382,38570.0,38569.0,0.23699831]
[1610088660952,11.63783785,38570.0,38569.0,0.23699831]
[1610088663854,11.63783785,38570.0,38551.0,0.12452]
[1610088664058,0.13632608,38552.0,38543.0,0.08833]
[1610088664257,5.6568,38551.0,38543.0,0.08833]
[1610088664557,3.0665,38537.0,38518.0,0.06359859]
[1610088664754,3.0665,38537.0,38523.0,0.15900097]
[1610088664960,3.0665,38537.0,38517.0,0.03212102]
[1610088665256,3.0665,38537.0,38524.0,0.03212184]
[1610088665556,3.0665,38537.0,38524.0,0.09037]
[1610088665754,3.0665,38537.0,38525.0,0.03212248]
[1610088665954,3.0665,38537.0,38527.0,0.13632608]
[1610088666456,3.0665,38537.0,38528.0,0.03212331]
[1610088667257,0.00330682,38545.0,38528.0,0.03212331]
[1610088667455,0.00330534,38546.0,38528.0,0.03212331]
[1610088667956,0.01133215,38548.0,38533.0,0.13632608]
[1610088668355,0.5548,38547.0,38533.0,0.21956608]
[1610088668556,0.5548,38547.0,38534.0,0.03212443]
[1610088668956,0.55810419,38547.0,38534.0,0.03212443]
[1610088669155,0.55810419,38547.0,38533.0,0.08324]
[1610088669358,0.55810419,38547.0,38535.0,0.03212425]
[1610088669555,0.55810419,38547.0,38536.0,0.03212411]
[1610088669856,0.5548,38547.0,38536.0,0.06424772]
[1610088670056,0.13632608,38537.0,38536.0,0.06424772]
[1610088673360,0.13632608,38537.0,38536.0,0.12786048]
[1610088673567,0.13632608,38537.0,38536.0,0.06424772]
[1610088673761,0.13632608,38537.0,38536.0,0.12786375]
[1610088674063,0.13632608,38537.0,38536.0,0.0324432]
[1610088674361,0.13632608,38537.0,38536.0,0.06425186]
[1610088674565,0.13632608,38537.0,38536.0,0.56425186]
[1610088675062,0.13632608,38537.0,38536.0,0.12786726]
[1610088675464,0.13632608,38537.0,38536.0,0.06425186]
[1610088676763,0.13632608,38537.0,38536.0,0.56425186]
[1610088677166,0.13632608,38537.0,38536.0,0.62786096]
[1610088679162,0.13632608,38537.0,38536.0,0.59573685]
[1610088679363,0.64282608,38537.0,38536.0,0.59573685]
[1610088679565,0.64282608,38537.0,38536.0,0.53212775]
[1610088679965,0.64282608,38537.0,38536.0,0.59574208]
[1610088680168,0.64282608,38537.0,38536.0,0.53212775]
[1610088680365,0.64282608,38537.0,38536.0,0.59574417]
[1610088680766,0.64282608,38537.0,38536.0,0.53212775]
[1610088684672,0.13632608,38537.0,38536.0,0.53212775]
[1610088689675,3.92142608,38537.0,38536.0,0.53212775]
[1610088690379,5.34069071,38537.0,38536.0,0.53212775]
[1610088691278,6.03244092,38537.0,38536.0,0.53212775]
[1610088691679,6.60508141,38537.0,38536.0,0.53212775]
[1610088692478,6.60508141,38537.0,38536.0,0.49840928]
[1610088693380,2.81998141,38537.0,38536.0,0.49840928]
[1610088693882,2.24734092,38537.0,38536.0,0.49840928]
[1610088694282,1.55559071,38537.0,38536.0,0.49840928]
[1610088694783,0.60795616,38537.0,38536.0,0.49840928]
[1610088695583,0.62382586,38537.0,38536.0,0.49840928]
[1610088695982,1.07552586,38537.0,38536.0,0.49840928]
[1610088696183,0.60389578,38537.0,38536.0,0.49840928]
[1610088696584,1.07554974,38537.0,38536.0,0.49840928]
[1610088697085,1.05968004,38537.0,38536.0,0.49840928]
[1610088699287,1.62589395,38537.0,38536.0,0.49840928]
[1610088699588,2.0075904,38537.0,38536.0,0.49840928]
[1610088700391,1.62589395,38537.0,38536.0,0.49840928]
[1610088700789,2.00758792,38537.0,38536.0,0.49840928]
[1610088702893,2.00758792,38537.0,38536.0,0.56204106]
[1610088703196,2.00758792,38537.0,38536.0,0.49840928]
[1610088703393,2.00758792,38537.0,38536.0,0.56204173]
[1610088703797,2.00758792,38537.0,38536.0,0.49840928]
[1610088703995,2.00758792,38537.0,38536.0,0.56204241]
[1610088704195,2.00758792,38537.0,38536.0,0.49840928]
[1610088704595,2.00758792,38537.0,38536.0,0.56204335]
[1610088704796,2.00758792,38537.0,38536.0,0.49840928]
[1610088704998,2.00758792,38537.0,38536.0,0.56204228]
[1610088705298,2.00758792,38537.0,38536.0,0.49840928]
[1610088705496,2.00758792,38537.0,38536.0,0.56204298]
[1610088705896,2.00758792,38537.0,38536.0,0.49840928]
[1610088708705,3.48741277,38537.0,38536.0,0.49840928]
[1610088709204,3.48741277,38537.0,38536.0,0.49681854]
[1610088709905,4.98741277,38537.0,38536.0,0.49681854]
[1610088711507,3.48741277,38537.0,38536.0,0.49681854]
[1610088711706,4.98741277,38537.0,38536.0,0.49681854]
[1610088712207,4.20028194,38537.0,38536.0,0.49681854]
[1610088712511,5.08607782,38537.0,38536.0,0.49681854]
[1610088712708,3.58607782,38537.0,38536.0,0.49681854]
[1610088713007,3.01345597,38537.0,38536.0,0.49681854]
[1610088713307,2.32076195,38537.0,38536.0,0.49681854]
[1610088715413,3.0136998,38537.0,38536.0,0.49681854]
[1610088717918,3.80211497,38537.0,38536.0,0.49681854]
[1610088718720,5.30211497,38537.0,38536.0,0.49681854]
[1610088719120,5.87476059,38537.0,38536.0,0.49522786]
[1610088719320,5.30211497,38537.0,38536.0,0.49522786]
[1610088720021,5.87479411,38537.0,38536.0,0.49522786]
[1610088720320,6.75860702,38537.0,38536.0,0.31322786]
[1610088721624,7.86371546,38537.0,38536.0,0.31322786]
[1610088722328,9.25317151,38537.0,38536.0,0.31322786]
[1610088722527,9.25317151,38537.0,38536.0,0.2336719]
[1610088722727,8.68049237,38537.0,38536.0,0.2336719]
[1610088723027,9.25328901,38537.0,38536.0,0.2336719]
[1610088723328,7.86383296,38537.0,38536.0,0.2336719]
[1610088724532,6.75872452,38537.0,38536.0,0.2336719]
[1610088724929,5.25872452,38537.0,38536.0,0.2336719]
[1610088725229,6.75872452,38537.0,38536.0,0.2336719]
[1610088725429,4.23422788,38537.0,38536.0,0.2336719]
[1610088725729,4.80693903,38537.0,38536.0,0.2336719]
[1610088726230,4.23422788,38537.0,38536.0,0.2336719]
[1610088726931,3.35041497,38537.0,38536.0,0.2336719]
[1610088727736,2.5619998,38537.0,38536.0,0.2336719]
[1610088728334,1.86906195,38537.0,38536.0,0.2336719]
[1610088729131,0.92115407,38537.0,38536.0,0.2336719]
[1610088729939,0.44950011,38537.0,38536.0,0.2336719]
[1610088730135,0.18530011,38537.0,38536.0,0.2336719]
[1610088730435,0.18530011,38537.0,38536.0,0.36999798]
[1610088731836,0.18530011,38537.0,38536.0,3.44529798]
[1610088732336,0.18530011,38537.0,38536.0,3.60431878]
[1610088734141,0.18530011,38537.0,38536.0,3.5089063]
[1610088736143,0.18530011,38537.0,38536.0,0.4336063]
[1610088736341,3.35352619,38537.0,38536.0,0.4336063]
[1610088736540,3.35352619,38537.0,38536.0,0.36999798]
[1610088737342,0.32162619,38537.0,38536.0,0.36999798]
[1610088738043,0.32162619,38537.0,38536.0,0.2336719]
[1610088738646,0.3249392,38537.0,38536.0,0.2336719]
[1610088739348,0.32967279,38537.0,38536.0,0.2336719]
[1610088739847,0.33756186,38537.0,38536.0,0.2658001]
[1610088740259,4.08526836,38537.0,38536.0,0.2658001]
[1610088740850,5.01923152,38537.0,38536.0,0.2658001]
[1610088741052,6.28631705,38537.0,38536.0,0.2658001]
[1610088742153,7.07556539,38537.0,38536.0,0.2658001]
[1610088743351,6.28631705,38537.0,38536.0,0.2658001]
[1610088750665,3.01211705,38537.0,38536.0,0.2658001]
[1610088751267,1.74503152,38537.0,38536.0,0.2658001]
[1610088753768,1.36335453,38537.0,38536.0,0.2658001]
[1610088753971,5.41565453,38537.0,38536.0,0.2658001]
[1610088754171,5.79728264,38537.0,38536.0,0.2658001]
[1610088754572,6.49201022,38537.0,38536.0,0.2658001]
[1610088754973,7.06449439,38537.0,38536.0,0.2658001]
[1610088756078,8.56449439,38537.0,38536.0,0.2658001]
[1610088756580,9.35408498,38537.0,38536.0,0.2658001]
[1610088757081,9.35408498,38537.0,38536.0,0.1148001]
[1610088757480,10.23847322,38537.0,38536.0,0.1148001]
[1610088757780,10.23847322,38537.0,38536.0,0.11320933]
[1610088758181,11.34398055,38537.0,38536.0,0.11320933]
[1610088758582,12.73349426,38537.0,38536.0,0.03366446]
[1610088758784,12.73349426,38537.0,38506.0,3.417]
[1610088758981,8.68119426,38537.0,38507.0,0.0636573]
[1610088759185,0.01136829,38508.0,38507.0,0.0636573]
[1610088759387,0.01136829,38508.0,38507.0,0.09580721]
[1610088759586,4.10739693,38508.0,38501.0,0.03215192]
[1610088759785,4.10739693,38508.0,38507.0,0.0321523]